Workbook

Sheet LISTE
B1: Janvier | C1: Février | D1: Mars | E1: Avril | F1: Mai | G1: Juin | H1: Juillet | I1: Août | J1: Septembre | K1: Octobre | L1: Novembre | M1: Décembre
A2: client_6 | B2: 750 | C2: 650 | D2: 700 | E2: 650 | F2: 625 | G2: 600 | H2: 575 | I2: 550 | J2: 525 | K2: 500 | L2: 475 | M2: 450
A3: client_5 | B3: 810 | C3: 710 | D3: 760 | E3: 710 | F3: 685 | G3: 660 | H3: 635 | I3: 610 | J3: 585 | K3: 560 | L3: 535 | M3: 510
A4: client_1 | B4: 550 | C4: 450 | D4: 500 | E4: 450 | F4: 425 | G4: 400 | H4: 375 | I4: 350 | J4: 325 | K4: 300 | L4: 275 | M4: 250
A5: client_3 | B5: 600 | C5: 500 | D5: 550 | E5: 500 | F5: 475 | G5: 450 | H5: 425 | I5: 400 | J5: 375 | K5: 350 | L5: 325 | M5: 300
A6: client_7 | B6: 630 | C6: 530 | D6: 580 | E6: 530 | F6: 505 | G6: 480 | H6: 455 | I6: 430 | J6: 405 | K6: 380 | L6: 355 | M6: 330
A7: client_10 | B7: 790 | C7: 690 | D7: 740 | E7: 690 | F7: 665 | G7: 640 | H7: 615 | I7: 590 | J7: 565 | K7: 540 | L7: 515 | M7: 490
A8: client_7 | B8: 780 | C8: 680 | D8: 730 | E8: 680 | F8: 655 | G8: 630 | H8: 605 | I8: 580 | J8: 555 | K8: 530 | L8: 505 | M8: 480
A9: client_9 | B9: 660 | C9: 560 | D9: 610 | E9: 560 | F9: 535 | G9: 510 | H9: 485 | I9: 460 | J9: 435 | K9: 410 | L9: 385 | M9: 360
A10: client_8 | B10: 800 | C10: 700 | D10: 750 | E10: 700 | F10: 675 | G10: 650 | H10: 625 | I10: 600 | J10: 575 | K10: 550 | L10: 525 | M10: 500
A11: client_6 | B11: 670 | C11: 570 | D11: 620 | E11: 570 | F11: 545 | G11: 520 | H11: 495 | I11: 470 | J11: 445 | K11: 420 | L11: 395 | M11: 370
A12: client_9 | B12: 650 | C12: 550 | D12: 600 | E12: 550 | F12: 525 | G12: 500 | H12: 475 | I12: 450 | J12: 425 | K12: 400 | L12: 375 | M12: 350
A13: client_6 | B13: 820 | C13: 720 | D13: 770 | E13: 720 | F13: 695 | G13: 670 | H13: 645 | I13: 620 | J13: 595 | K13: 570 | L13: 545 | M13: 520
A14: client_1 | B14: 500 | C14: 400 | D14: 450 | E14: 400 | F14: 375 | G14: 350 | H14: 325 | I14: 300 | J14: 275 | K14: 250 | L14: 225 | M14: 200
A15: client_2 | B15: 710 | C15: 610 | D15: 660 | E15: 610 | F15: 585 | G15: 560 | H15: 535 | I15: 510 | J15: 485 | K15: 460 | L15: 435 | M15: 410
A16: client_2 | B16: 880 | C16: 780 | D16: 830 | E16: 780 | F16: 755 | G16: 730 | H16: 705 | I16: 680 | J16: 655 | K16: 630 | L16: 605 | M16: 580
A17: client_5 | B17: 770 | C17: 670 | D17: 720 | E17: 670 | F17: 645 | G17: 620 | H17: 595 | I17: 570 | J17: 545 | K17: 520 | L17: 495 | M17: 470
A18: client_5 | B18: 850 | C18: 750 | D18: 800 | E18: 750 | F18: 725 | G18: 700 | H18: 675 | I18: 650 | J18: 625 | K18: 600 | L18: 575 | M18: 550
A19: client_1 | B19: 510 | C19: 410 | D19: 460 | E19: 410 | F19: 385 | G19: 360 | H19: 335 | I19: 310 | J19: 285 | K19: 260 | L19: 235 | M19: 210
A20: client_10 | B20: 560 | C20: 460 | D20: 510 | E20: 460 | F20: 435 | G20: 410 | H20: 385 | I20: 360 | J20: 335 | K20: 310 | L20: 285 | M20: 260
A21: client_2 | B21: 900 | C21: 800 | D21: 850 | E21: 800 | F21: 775 | G21: 750 | H21: 725 | I21: 700 | J21: 675 | K21: 650 | L21: 625 | M21: 600
A22: client_5 | B22: 580 | C22: 480 | D22: 530 | E22: 480 | F22: 455 | G22: 430 | H22: 405 | I22: 380 | J22: 355 | K22: 330 | L22: 305 | M22: 280
A23: client_7 | B23: 720 | C23: 620 | D23: 670 | E23: 620 | F23: 595 | G23: 570 | H23: 545 | I23: 520 | J23: 495 | K23: 470 | L23: 445 | M23: 420
A24: client_8 | B24: 530 | C24: 430 | D24: 480 | E24: 430 | F24: 405 | G24: 380 | H24: 355 | I24: 330 | J24: 305 | K24: 280 | L24: 255 | M24: 230
A25: client_9 | B25: 860 | C25: 760 | D25: 810 | E25: 760 | F25: 735 | G25: 710 | H25: 685 | I25: 660 | J25: 635 | K25: 610 | L25: 585 | M25: 560
A26: client_10 | B26: 690 | C26: 590 | D26: 640 | E26: 590 | F26: 565 | G26: 540 | H26: 515 | I26: 490 | J26: 465 | K26: 440 | L26: 415 | M26: 390
A27: client_4 | B27: 700 | C27: 600 | D27: 650 | E27: 600 | F27: 575 | G27: 550 | H27: 525 | I27: 500 | J27: 475 | K27: 450 | L27: 425 | M27: 400
A28: client_3 | B28: 730 | C28: 630 | D28: 680 | E28: 630 | F28: 605 | G28: 580 | H28: 555 | I28: 530 | J28: 505 | K28: 480 | L28: 455 | M28: 430
A29: client_2 | B29: 540 | C29: 440 | D29: 490 | E29: 440 | F29: 415 | G29: 390 | H29: 365 | I29: 340 | J29: 315 | K29: 290 | L29: 265 | M29: 240
A30: client_9 | B30: 680 | C30: 580 | D30: 630 | E30: 580 | F30: 555 | G30: 530 | H30: 505 | I30: 480 | J30: 455 | K30: 430 | L30: 405 | M30: 380
A31: client_3 | B31: 590 | C31: 490 | D31: 540 | E31: 490 | F31: 465 | G31: 440 | H31: 415 | I31: 390 | J31: 365 | K31: 340 | L31: 315 | M31: 290
A32: client_4 | B32: 610 | C32: 510 | D32: 560 | E32: 510 | F32: 485 | G32: 460 | H32: 435 | I32: 410 | J32: 385 | K32: 360 | L32: 335 | M32: 310
A33: client_6 | B33: 840 | C33: 740 | D33: 790 | E33: 740 | F33: 715 | G33: 690 | H33: 665 | I33: 640 | J33: 615 | K33: 590 | L33: 565 | M33: 540
A34: client_1 | B34: 740 | C34: 640 | D34: 690 | E34: 640 | F34: 615 | G34: 590 | H34: 565 | I34: 540 | J34: 515 | K34: 490 | L34: 465 | M34: 440
A35: client_3 | B35: 640 | C35: 540 | D35: 590 | E35: 540 | F35: 515 | G35: 490 | H35: 465 | I35: 440 | J35: 415 | K35: 390 | L35: 365 | M35: 340
A36: client_9 | B36: 760 | C36: 660 | D36: 710 | E36: 660 | F36: 635 | G36: 610 | H36: 585 | I36: 560 | J36: 535 | K36: 510 | L36: 485 | M36: 460
A37: client_10 | B37: 620 | C37: 520 | D37: 570 | E37: 520 | F37: 495 | G37: 470 | H37: 445 | I37: 420 | J37: 395 | K37: 370 | L37: 345 | M37: 320
A38: client_4 | B38: 520 | C38: 420 | D38: 470 | E38: 420 | F38: 395 | G38: 370 | H38: 345 | I38: 320 | J38: 295 | K38: 270 | L38: 245 | M38: 220
A39: client_7 | B39: 890 | C39: 790 | D39: 840 | E39: 790 | F39: 765 | G39: 740 | H39: 715 | I39: 690 | J39: 665 | K39: 640 | L39: 615 | M39: 590
A40: client_8 | B40: 870 | C40: 770 | D40: 820 | E40: 770 | F40: 745 | G40: 720 | H40: 695 | I40: 670 | J40: 645 | K40: 620 | L40: 595 | M40: 570

Sheet RECAP
B1: Janvier | C1: Février | D1: Mars | E1: Avril | F1: Mai | G1: Juin | H1: Juillet | I1: Août | J1: Septembre | K1: Octobre | L1: Novembre | M1: Décembre | N1: cumul
A2: client_1 | B2: =SUMPRODUCT((LISTE!$A$2:$A$40=$A2)*(LISTE!$B$1:$M$1=B$1)*(LISTE!$B$2:$M$40)) -> 2300 | C2: =SUMPRODUCT((LISTE!$A$2:$A$40=$A2)*(LISTE!$B$1:$M$1=C$1)*(LISTE!$B$2:$M$40)) -> 1900 | D2: =SUMPRODUCT((LISTE!$A$2:$A$40=$A2)*(LISTE!$B$1:$M$1=D$1)*(LISTE!$B$2:$M$40)) -> 2100 | E2: =SUMPRODUCT((LISTE!$A$2:$A$40=$A2)*(LISTE!$B$1:$M$1=E$1)*(LISTE!$B$2:$M$40)) -> 1900 | F2: =SUMPRODUCT((LISTE!$A$2:$A$40=$A2)*(LISTE!$B$1:$M$1=F$1)*(LISTE!$B$2:$M$40)) -> 1800 | G2: =SUMPRODUCT((LISTE!$A$2:$A$40=$A2)*(LISTE!$B$1:$M$1=G$1)*(LISTE!$B$2:$M$40)) -> 1700 | H2: =SUMPRODUCT((LISTE!$A$2:$A$40=$A2)*(LISTE!$B$1:$M$1=H$1)*(LISTE!$B$2:$M$40)) -> 1600 | I2: =SUMPRODUCT((LISTE!$A$2:$A$40=$A2)*(LISTE!$B$1:$M$1=I$1)*(LISTE!$B$2:$M$40)) -> 1500 | J2: =SUMPRODUCT((LISTE!$A$2:$A$40=$A2)*(LISTE!$B$1:$M$1=J$1)*(LISTE!$B$2:$M$40)) -> 1400 | K2: =SUMPRODUCT((LISTE!$A$2:$A$40=$A2)*(LISTE!$B$1:$M$1=K$1)*(LISTE!$B$2:$M$40)) -> 1300 | L2: =SUMPRODUCT((LISTE!$A$2:$A$40=$A2)*(LISTE!$B$1:$M$1=L$1)*(LISTE!$B$2:$M$40)) -> 1200 | M2: =SUMPRODUCT((LISTE!$A$2:$A$40=$A2)*(LISTE!$B$1:$M$1=M$1)*(LISTE!$B$2:$M$40)) -> 1100 | N2: =SUM(B2:M2) -> 19800
A3: client_10 | B3: =SUMPRODUCT((LISTE!$A$2:$A$40=$A3)*(LISTE!$B$1:$M$1=B$1)*(LISTE!$B$2:$M$40)) -> 2660 | C3: =SUMPRODUCT((LISTE!$A$2:$A$40=$A3)*(LISTE!$B$1:$M$1=C$1)*(LISTE!$B$2:$M$40)) -> 2260 | D3: =SUMPRODUCT((LISTE!$A$2:$A$40=$A3)*(LISTE!$B$1:$M$1=D$1)*(LISTE!$B$2:$M$40)) -> 2460 | E3: =SUMPRODUCT((LISTE!$A$2:$A$40=$A3)*(LISTE!$B$1:$M$1=E$1)*(LISTE!$B$2:$M$40)) -> 2260 | F3: =SUMPRODUCT((LISTE!$A$2:$A$40=$A3)*(LISTE!$B$1:$M$1=F$1)*(LISTE!$B$2:$M$40)) -> 2160 | G3: =SUMPRODUCT((LISTE!$A$2:$A$40=$A3)*(LISTE!$B$1:$M$1=G$1)*(LISTE!$B$2:$M$40)) -> 2060 | H3: =SUMPRODUCT((LISTE!$A$2:$A$40=$A3)*(LISTE!$B$1:$M$1=H$1)*(LISTE!$B$2:$M$40)) -> 1960 | I3: =SUMPRODUCT((LISTE!$A$2:$A$40=$A3)*(LISTE!$B$1:$M$1=I$1)*(LISTE!$B$2:$M$40)) -> 1860 | J3: =SUMPRODUCT((LISTE!$A$2:$A$40=$A3)*(LISTE!$B$1:$M$1=J$1)*(LISTE!$B$2:$M$40)) -> 1760 | K3: =SUMPRODUCT((LISTE!$A$2:$A$40=$A3)*(LISTE!$B$1:$M$1=K$1)*(LISTE!$B$2:$M$40)) -> 1660 | L3: =SUMPRODUCT((LISTE!$A$2:$A$40=$A3)*(LISTE!$B$1:$M$1=L$1)*(LISTE!$B$2:$M$40)) -> 1560 | M3: =SUMPRODUCT((LISTE!$A$2:$A$40=$A3)*(LISTE!$B$1:$M$1=M$1)*(LISTE!$B$2:$M$40)) -> 1460 | N3: =SUM(B3:M3) -> 24120
A4: client_2 | B4: =SUMPRODUCT((LISTE!$A$2:$A$40=$A4)*(LISTE!$B$1:$M$1=B$1)*(LISTE!$B$2:$M$40)) -> 3030 | C4: =SUMPRODUCT((LISTE!$A$2:$A$40=$A4)*(LISTE!$B$1:$M$1=C$1)*(LISTE!$B$2:$M$40)) -> 2630 | D4: =SUMPRODUCT((LISTE!$A$2:$A$40=$A4)*(LISTE!$B$1:$M$1=D$1)*(LISTE!$B$2:$M$40)) -> 2830 | E4: =SUMPRODUCT((LISTE!$A$2:$A$40=$A4)*(LISTE!$B$1:$M$1=E$1)*(LISTE!$B$2:$M$40)) -> 2630 | F4: =SUMPRODUCT((LISTE!$A$2:$A$40=$A4)*(LISTE!$B$1:$M$1=F$1)*(LISTE!$B$2:$M$40)) -> 2530 | G4: =SUMPRODUCT((LISTE!$A$2:$A$40=$A4)*(LISTE!$B$1:$M$1=G$1)*(LISTE!$B$2:$M$40)) -> 2430 | H4: =SUMPRODUCT((LISTE!$A$2:$A$40=$A4)*(LISTE!$B$1:$M$1=H$1)*(LISTE!$B$2:$M$40)) -> 2330 | I4: =SUMPRODUCT((LISTE!$A$2:$A$40=$A4)*(LISTE!$B$1:$M$1=I$1)*(LISTE!$B$2:$M$40)) -> 2230 | J4: =SUMPRODUCT((LISTE!$A$2:$A$40=$A4)*(LISTE!$B$1:$M$1=J$1)*(LISTE!$B$2:$M$40)) -> 2130 | K4: =SUMPRODUCT((LISTE!$A$2:$A$40=$A4)*(LISTE!$B$1:$M$1=K$1)*(LISTE!$B$2:$M$40)) -> 2030 | L4: =SUMPRODUCT((LISTE!$A$2:$A$40=$A4)*(LISTE!$B$1:$M$1=L$1)*(LISTE!$B$2:$M$40)) -> 1930 | M4: =SUMPRODUCT((LISTE!$A$2:$A$40=$A4)*(LISTE!$B$1:$M$1=M$1)*(LISTE!$B$2:$M$40)) -> 1830 | N4: 28560
A5: client_3 | B5: =SUMPRODUCT((LISTE!$A$2:$A$40=$A5)*(LISTE!$B$1:$M$1=B$1)*(LISTE!$B$2:$M$40)) -> 2560 | C5: =SUMPRODUCT((LISTE!$A$2:$A$40=$A5)*(LISTE!$B$1:$M$1=C$1)*(LISTE!$B$2:$M$40)) -> 2160 | D5: =SUMPRODUCT((LISTE!$A$2:$A$40=$A5)*(LISTE!$B$1:$M$1=D$1)*(LISTE!$B$2:$M$40)) -> 2360 | E5: =SUMPRODUCT((LISTE!$A$2:$A$40=$A5)*(LISTE!$B$1:$M$1=E$1)*(LISTE!$B$2:$M$40)) -> 2160 | F5: =SUMPRODUCT((LISTE!$A$2:$A$40=$A5)*(LISTE!$B$1:$M$1=F$1)*(LISTE!$B$2:$M$40)) -> 2060 | G5: =SUMPRODUCT((LISTE!$A$2:$A$40=$A5)*(LISTE!$B$1:$M$1=G$1)*(LISTE!$B$2:$M$40)) -> 1960 | H5: =SUMPRODUCT((LISTE!$A$2:$A$40=$A5)*(LISTE!$B$1:$M$1=H$1)*(LISTE!$B$2:$M$40)) -> 1860 | I5: =SUMPRODUCT((LISTE!$A$2:$A$40=$A5)*(LISTE!$B$1:$M$1=I$1)*(LISTE!$B$2:$M$40)) -> 1760 | J5: =SUMPRODUCT((LISTE!$A$2:$A$40=$A5)*(LISTE!$B$1:$M$1=J$1)*(LISTE!$B$2:$M$40)) -> 1660 | K5: =SUMPRODUCT((LISTE!$A$2:$A$40=$A5)*(LISTE!$B$1:$M$1=K$1)*(LISTE!$B$2:$M$40)) -> 1560 | L5: =SUMPRODUCT((LISTE!$A$2:$A$40=$A5)*(LISTE!$B$1:$M$1=L$1)*(LISTE!$B$2:$M$40)) -> 1460 | M5: =SUMPRODUCT((LISTE!$A$2:$A$40=$A5)*(LISTE!$B$1:$M$1=M$1)*(LISTE!$B$2:$M$40)) -> 1360 | N5: 22920
A6: client_4 | B6: =SUMPRODUCT((LISTE!$A$2:$A$40=$A6)*(LISTE!$B$1:$M$1=B$1)*(LISTE!$B$2:$M$40)) -> 1830 | C6: =SUMPRODUCT((LISTE!$A$2:$A$40=$A6)*(LISTE!$B$1:$M$1=C$1)*(LISTE!$B$2:$M$40)) -> 1530 | D6: =SUMPRODUCT((LISTE!$A$2:$A$40=$A6)*(LISTE!$B$1:$M$1=D$1)*(LISTE!$B$2:$M$40)) -> 1680 | E6: =SUMPRODUCT((LISTE!$A$2:$A$40=$A6)*(LISTE!$B$1:$M$1=E$1)*(LISTE!$B$2:$M$40)) -> 1530 | F6: =SUMPRODUCT((LISTE!$A$2:$A$40=$A6)*(LISTE!$B$1:$M$1=F$1)*(LISTE!$B$2:$M$40)) -> 1455 | G6: =SUMPRODUCT((LISTE!$A$2:$A$40=$A6)*(LISTE!$B$1:$M$1=G$1)*(LISTE!$B$2:$M$40)) -> 1380 | H6: =SUMPRODUCT((LISTE!$A$2:$A$40=$A6)*(LISTE!$B$1:$M$1=H$1)*(LISTE!$B$2:$M$40)) -> 1305 | I6: =SUMPRODUCT((LISTE!$A$2:$A$40=$A6)*(LISTE!$B$1:$M$1=I$1)*(LISTE!$B$2:$M$40)) -> 1230 | J6: =SUMPRODUCT((LISTE!$A$2:$A$40=$A6)*(LISTE!$B$1:$M$1=J$1)*(LISTE!$B$2:$M$40)) -> 1155 | K6: =SUMPRODUCT((LISTE!$A$2:$A$40=$A6)*(LISTE!$B$1:$M$1=K$1)*(LISTE!$B$2:$M$40)) -> 1080 | L6: =SUMPRODUCT((LISTE!$A$2:$A$40=$A6)*(LISTE!$B$1:$M$1=L$1)*(LISTE!$B$2:$M$40)) -> 1005 | M6: =SUMPRODUCT((LISTE!$A$2:$A$40=$A6)*(LISTE!$B$1:$M$1=M$1)*(LISTE!$B$2:$M$40)) -> 930 | N6: 16110
A7: client_5 | B7: =SUMPRODUCT((LISTE!$A$2:$A$40=$A7)*(LISTE!$B$1:$M$1=B$1)*(LISTE!$B$2:$M$40)) -> 3010 | C7: =SUMPRODUCT((LISTE!$A$2:$A$40=$A7)*(LISTE!$B$1:$M$1=C$1)*(LISTE!$B$2:$M$40)) -> 2610 | D7: =SUMPRODUCT((LISTE!$A$2:$A$40=$A7)*(LISTE!$B$1:$M$1=D$1)*(LISTE!$B$2:$M$40)) -> 2810 | E7: =SUMPRODUCT((LISTE!$A$2:$A$40=$A7)*(LISTE!$B$1:$M$1=E$1)*(LISTE!$B$2:$M$40)) -> 2610 | F7: =SUMPRODUCT((LISTE!$A$2:$A$40=$A7)*(LISTE!$B$1:$M$1=F$1)*(LISTE!$B$2:$M$40)) -> 2510 | G7: =SUMPRODUCT((LISTE!$A$2:$A$40=$A7)*(LISTE!$B$1:$M$1=G$1)*(LISTE!$B$2:$M$40)) -> 2410 | H7: =SUMPRODUCT((LISTE!$A$2:$A$40=$A7)*(LISTE!$B$1:$M$1=H$1)*(LISTE!$B$2:$M$40)) -> 2310 | I7: =SUMPRODUCT((LISTE!$A$2:$A$40=$A7)*(LISTE!$B$1:$M$1=I$1)*(LISTE!$B$2:$M$40)) -> 2210 | J7: =SUMPRODUCT((LISTE!$A$2:$A$40=$A7)*(LISTE!$B$1:$M$1=J$1)*(LISTE!$B$2:$M$40)) -> 2110 | K7: =SUMPRODUCT((LISTE!$A$2:$A$40=$A7)*(LISTE!$B$1:$M$1=K$1)*(LISTE!$B$2:$M$40)) -> 2010 | L7: =SUMPRODUCT((LISTE!$A$2:$A$40=$A7)*(LISTE!$B$1:$M$1=L$1)*(LISTE!$B$2:$M$40)) -> 1910 | M7: =SUMPRODUCT((LISTE!$A$2:$A$40=$A7)*(LISTE!$B$1:$M$1=M$1)*(LISTE!$B$2:$M$40)) -> 1810 | N7: 28320
A8: client_6 | B8: =SUMPRODUCT((LISTE!$A$2:$A$40=$A8)*(LISTE!$B$1:$M$1=B$1)*(LISTE!$B$2:$M$40)) -> 3080 | C8: =SUMPRODUCT((LISTE!$A$2:$A$40=$A8)*(LISTE!$B$1:$M$1=C$1)*(LISTE!$B$2:$M$40)) -> 2680 | D8: =SUMPRODUCT((LISTE!$A$2:$A$40=$A8)*(LISTE!$B$1:$M$1=D$1)*(LISTE!$B$2:$M$40)) -> 2880 | E8: =SUMPRODUCT((LISTE!$A$2:$A$40=$A8)*(LISTE!$B$1:$M$1=E$1)*(LISTE!$B$2:$M$40)) -> 2680 | F8: =SUMPRODUCT((LISTE!$A$2:$A$40=$A8)*(LISTE!$B$1:$M$1=F$1)*(LISTE!$B$2:$M$40)) -> 2580 | G8: =SUMPRODUCT((LISTE!$A$2:$A$40=$A8)*(LISTE!$B$1:$M$1=G$1)*(LISTE!$B$2:$M$40)) -> 2480 | H8: =SUMPRODUCT((LISTE!$A$2:$A$40=$A8)*(LISTE!$B$1:$M$1=H$1)*(LISTE!$B$2:$M$40)) -> 2380 | I8: =SUMPRODUCT((LISTE!$A$2:$A$40=$A8)*(LISTE!$B$1:$M$1=I$1)*(LISTE!$B$2:$M$40)) -> 2280 | J8: =SUMPRODUCT((LISTE!$A$2:$A$40=$A8)*(LISTE!$B$1:$M$1=J$1)*(LISTE!$B$2:$M$40)) -> 2180 | K8: =SUMPRODUCT((LISTE!$A$2:$A$40=$A8)*(LISTE!$B$1:$M$1=K$1)*(LISTE!$B$2:$M$40)) -> 2080 | L8: =SUMPRODUCT((LISTE!$A$2:$A$40=$A8)*(LISTE!$B$1:$M$1=L$1)*(LISTE!$B$2:$M$40)) -> 1980 | M8: =SUMPRODUCT((LISTE!$A$2:$A$40=$A8)*(LISTE!$B$1:$M$1=M$1)*(LISTE!$B$2:$M$40)) -> 1880 | N8: 29160
A9: client_7 | B9: =SUMPRODUCT((LISTE!$A$2:$A$40=$A9)*(LISTE!$B$1:$M$1=B$1)*(LISTE!$B$2:$M$40)) -> 3020 | C9: =SUMPRODUCT((LISTE!$A$2:$A$40=$A9)*(LISTE!$B$1:$M$1=C$1)*(LISTE!$B$2:$M$40)) -> 2620 | D9: =SUMPRODUCT((LISTE!$A$2:$A$40=$A9)*(LISTE!$B$1:$M$1=D$1)*(LISTE!$B$2:$M$40)) -> 2820 | E9: =SUMPRODUCT((LISTE!$A$2:$A$40=$A9)*(LISTE!$B$1:$M$1=E$1)*(LISTE!$B$2:$M$40)) -> 2620 | F9: =SUMPRODUCT((LISTE!$A$2:$A$40=$A9)*(LISTE!$B$1:$M$1=F$1)*(LISTE!$B$2:$M$40)) -> 2520 | G9: =SUMPRODUCT((LISTE!$A$2:$A$40=$A9)*(LISTE!$B$1:$M$1=G$1)*(LISTE!$B$2:$M$40)) -> 2420 | H9: =SUMPRODUCT((LISTE!$A$2:$A$40=$A9)*(LISTE!$B$1:$M$1=H$1)*(LISTE!$B$2:$M$40)) -> 2320 | I9: =SUMPRODUCT((LISTE!$A$2:$A$40=$A9)*(LISTE!$B$1:$M$1=I$1)*(LISTE!$B$2:$M$40)) -> 2220 | J9: =SUMPRODUCT((LISTE!$A$2:$A$40=$A9)*(LISTE!$B$1:$M$1=J$1)*(LISTE!$B$2:$M$40)) -> 2120 | K9: =SUMPRODUCT((LISTE!$A$2:$A$40=$A9)*(LISTE!$B$1:$M$1=K$1)*(LISTE!$B$2:$M$40)) -> 2020 | L9: =SUMPRODUCT((LISTE!$A$2:$A$40=$A9)*(LISTE!$B$1:$M$1=L$1)*(LISTE!$B$2:$M$40)) -> 1920 | M9: =SUMPRODUCT((LISTE!$A$2:$A$40=$A9)*(LISTE!$B$1:$M$1=M$1)*(LISTE!$B$2:$M$40)) -> 1820 | N9: 28440
A10: client_8 | B10: =SUMPRODUCT((LISTE!$A$2:$A$40=$A10)*(LISTE!$B$1:$M$1=B$1)*(LISTE!$B$2:$M$40)) -> 2200 | C10: =SUMPRODUCT((LISTE!$A$2:$A$40=$A10)*(LISTE!$B$1:$M$1=C$1)*(LISTE!$B$2:$M$40)) -> 1900 | D10: =SUMPRODUCT((LISTE!$A$2:$A$40=$A10)*(LISTE!$B$1:$M$1=D$1)*(LISTE!$B$2:$M$40)) -> 2050 | E10: =SUMPRODUCT((LISTE!$A$2:$A$40=$A10)*(LISTE!$B$1:$M$1=E$1)*(LISTE!$B$2:$M$40)) -> 1900 | F10: =SUMPRODUCT((LISTE!$A$2:$A$40=$A10)*(LISTE!$B$1:$M$1=F$1)*(LISTE!$B$2:$M$40)) -> 1825 | G10: =SUMPRODUCT((LISTE!$A$2:$A$40=$A10)*(LISTE!$B$1:$M$1=G$1)*(LISTE!$B$2:$M$40)) -> 1750 | H10: =SUMPRODUCT((LISTE!$A$2:$A$40=$A10)*(LISTE!$B$1:$M$1=H$1)*(LISTE!$B$2:$M$40)) -> 1675 | I10: =SUMPRODUCT((LISTE!$A$2:$A$40=$A10)*(LISTE!$B$1:$M$1=I$1)*(LISTE!$B$2:$M$40)) -> 1600 | J10: =SUMPRODUCT((LISTE!$A$2:$A$40=$A10)*(LISTE!$B$1:$M$1=J$1)*(LISTE!$B$2:$M$40)) -> 1525 | K10: =SUMPRODUCT((LISTE!$A$2:$A$40=$A10)*(LISTE!$B$1:$M$1=K$1)*(LISTE!$B$2:$M$40)) -> 1450 | L10: =SUMPRODUCT((LISTE!$A$2:$A$40=$A10)*(LISTE!$B$1:$M$1=L$1)*(LISTE!$B$2:$M$40)) -> 1375 | M10: =SUMPRODUCT((LISTE!$A$2:$A$40=$A10)*(LISTE!$B$1:$M$1=M$1)*(LISTE!$B$2:$M$40)) -> 1300 | N10: 20550
A11: client_9 | B11: =SUMPRODUCT((LISTE!$A$2:$A$40=$A11)*(LISTE!$B$1:$M$1=B$1)*(LISTE!$B$2:$M$40)) -> 3610 | C11: =SUMPRODUCT((LISTE!$A$2:$A$40=$A11)*(LISTE!$B$1:$M$1=C$1)*(LISTE!$B$2:$M$40)) -> 3110 | D11: =SUMPRODUCT((LISTE!$A$2:$A$40=$A11)*(LISTE!$B$1:$M$1=D$1)*(LISTE!$B$2:$M$40)) -> 3360 | E11: =SUMPRODUCT((LISTE!$A$2:$A$40=$A11)*(LISTE!$B$1:$M$1=E$1)*(LISTE!$B$2:$M$40)) -> 3110 | F11: =SUMPRODUCT((LISTE!$A$2:$A$40=$A11)*(LISTE!$B$1:$M$1=F$1)*(LISTE!$B$2:$M$40)) -> 2985 | G11: =SUMPRODUCT((LISTE!$A$2:$A$40=$A11)*(LISTE!$B$1:$M$1=G$1)*(LISTE!$B$2:$M$40)) -> 2860 | H11: =SUMPRODUCT((LISTE!$A$2:$A$40=$A11)*(LISTE!$B$1:$M$1=H$1)*(LISTE!$B$2:$M$40)) -> 2735 | I11: =SUMPRODUCT((LISTE!$A$2:$A$40=$A11)*(LISTE!$B$1:$M$1=I$1)*(LISTE!$B$2:$M$40)) -> 2610 | J11: =SUMPRODUCT((LISTE!$A$2:$A$40=$A11)*(LISTE!$B$1:$M$1=J$1)*(LISTE!$B$2:$M$40)) -> 2485 | K11: =SUMPRODUCT((LISTE!$A$2:$A$40=$A11)*(LISTE!$B$1:$M$1=K$1)*(LISTE!$B$2:$M$40)) -> 2360 | L11: =SUMPRODUCT((LISTE!$A$2:$A$40=$A11)*(LISTE!$B$1:$M$1=L$1)*(LISTE!$B$2:$M$40)) -> 2235 | M11: =SUMPRODUCT((LISTE!$A$2:$A$40=$A11)*(LISTE!$B$1:$M$1=M$1)*(LISTE!$B$2:$M$40)) -> 2110 | N11: 33570
